fUST/lending_fUST_20250603
["ID","MTS","AMOUNT","RATE_DAILY","PERIOD"]
[363992909,1748955048676,-1073.08,0.00021643,2]
[363992911,1748955048686,-492.44,0.00021643,2]
[363992913,1748955048695,-1310.04,0.00021643,2]
[363992915,1748955048703,-202.26,0.00021643,2]
[363992917,1748955048712,-921.07,0.00021643,2]
[363992919,1748955048721,-584.95,0.00021643,2]
[363992921,1748955048731,-440.0,0.00021643,2]
[363992923,1748955048740,-207.35116339,0.0002182,6]
[363992925,1748955048749,-1864.52,0.000219,2]
[363992927,1748955048758,-440.0,0.00021917,2]
[363992929,1748955048767,-624.03,0.00021917,2]
[363992930,1748955048777,-602.83,0.00021917,2]
[363992932,1748955048788,-872.38,0.00021917,2]
[363992934,1748955048798,-440.0,0.00021917,2]
[363992936,1748955048807,-1073.08,0.00021917,2]
[363992938,1748955048816,-1310.04,0.00021917,2]
[363992940,1748955048826,-921.07,0.00021917,2]
[363992942,1748955048837,-584.95,0.00021917,2]
[363992944,1748955048846,-440.0,0.00021917,2]
[363992946,1748955048855,-1694.84,0.00022,2]
[363992948,1748955048865,-207.35116339,0.000221,6]
[363992950,1748955048875,-500.0,0.00022191,5]
[363992952,1748955048885,-285.75,0.00022191,2]
[363992954,1748955048894,-624.03,0.00022191,2]
[363992956,1748955048904,-602.83,0.00022191,2]
[363992958,1748955048913,-872.38,0.00022191,2]
[363992960,1748955048922,-268.72,0.00022191,2]
[363992962,1748955048931,-1073.08,0.00022191,2]
[363992964,1748955048940,-1310.04,0.00022191,2]
[363992966,1748955048949,-921.07,0.00022191,2]
[363992968,1748955048959,-584.95,0.00022191,2]
[363992970,1748955048968,-196.96,0.00022191,2]
[363992972,1748955048977,-962.0,0.0002225,2]
[363992974,1748955048986,-2225.0,0.0002225,2]
[363992976,1748955048996,-709.0,0.0002225,2]
[363992978,1748955049005,-215.0738,0.00022265,2]
[363992980,1748955049015,-212.86879254,0.0002228,10]
[363992982,1748955049024,-12670.76136593,0.0002228,10]
[363992984,1748955049034,-10424.12,0.0002228,10]
[363992986,1748955049043,-106059.91,0.000223,7]
[363992988,1748955049053,-212.86879254,0.000223,7]
[363992990,1748955049062,-540.97549696,0.0002231,2]
[363992992,1748955049072,-207.35116339,0.0002238,7]
[363992994,1748955049081,-624.03,0.00022465,2]
[363992996,1748955049091,-602.83,0.00022465,2]
[363992998,1748955049102,-872.38,0.00022465,2]
[363993000,1748955049111,-1073.08,0.00022465,2]
[363993003,1748955049121,-1310.04,0.00022465,2]
[363993005,1748955049130,-921.07,0.00022465,2]
[363993007,1748955049140,-584.95,0.00022465,2]
[363993009,1748955049150,-25740.98,0.000225,2]
[363993010,1748955049159,-207.35116339,0.0002266,7]
[363993013,1748955049169,-500.0,0.00022739,6]
[363993014,1748955049178,-624.2,0.00022739,2]
[363993016,1748955049188,-602.85,0.00022739,2]
[363993018,1748955049198,-872.45,0.00022739,2]
[363993020,1748955049207,-1073.28,0.00022739,2]
[363993022,1748955049216,-1310.14,0.00022739,2]
[363993024,1748955049226,-921.29,0.00022739,2]
[363993026,1748955049235,-585.02295077,0.00022739,2]
[363993028,1748955049245,-207.35116339,0.0002294,8]
[363993030,1748955049254,-2200.0,0.00022953,2]
[363993033,1748955049267,-500.85,0.00023,4]
[363993034,1748955049276,-500.0,0.00023,3]
[363993036,1748955049286,-500.0,0.00023,3]
[363993038,1748955049296,-394.17948538,0.00023,3]
[363993047,1748955049579,-1125.44,0.00020547,2]
[363993049,1748955049590,-1119.38143821,0.00020821,2]
[363996328,1748955348159,794.0,0.00024658,120]
[363996331,1748955907632,160.890607,0.00013699,2]
[363996392,1748956154449,49820.15514818,0.00024658,120]
[363996402,1748956232226,-440.0,0.00016438,2]
[363996403,1748956232236,-440.0,0.00016438,2]
[363996404,1748956232246,-440.0,0.00016438,2]
[363996405,1748956232256,-492.08,0.00016438,2]
[363996406,1748956232265,-440.0,0.00016438,2]
[363996407,1748956232275,-440.0,0.00016438,2]
[363996409,1748956232285,-440.0,0.00016438,2]
[363996411,1748956232294,-430.0,0.00016438,2]
[363996412,1748956232304,-440.0,0.00016438,2]
[363996413,1748956232313,-440.0,0.00016438,2]
[363996414,1748956232323,-420.0,0.00016712,2]
[363996415,1748956232334,-440.0,0.00016712,2]
[363996416,1748956232344,-215.43,0.00016712,2]
[363996417,1748956232354,-250.37,0.00016712,2]
[363996418,1748956232363,-440.0,0.00016712,2]
[363996419,1748956232373,-348.43,0.00016712,2]
[363996420,1748956232383,-420.0,0.00016712,2]
[363996421,1748956232392,-440.0,0.00016712,2]
[363996422,1748956232401,-2039.96293812,0.00016712,2]
[363996898,1748956243265,-6862.81549092,0.00016712,2]
[363996900,1748956243275,-1622.55,0.00016985,2]
[363996902,1748956243284,-430.0,0.00016985,2]
[363996904,1748956243295,-440.0,0.00016985,2]
[363996906,1748956243305,-187.00213095,0.00016985,2]
[363996908,1748956243314,-440.0,0.00016986,2]
[363996910,1748956243324,-410.0,0.00016986,2]
[363996912,1748956243333,-440.0,0.00016986,2]
[363996914,1748956243344,-210.18940838,0.00017258,2]
[363996916,1748956243353,-430.0,0.00017258,2]
[363996918,1748956243363,-430.0,0.00017258,2]
[363996921,1748956243373,-430.0,0.00017258,2]
[363996924,1748956243383,-430.0,0.00017258,2]
[363996927,1748956243393,-440.0,0.00017258,2]
[363996930,1748956243403,-430.0,0.00017258,2]
[363996933,1748956243412,-430.0,0.00017258,2]
[363996936,1748956243421,-183.28450188,0.00017258,2]
[363996939,1748956243431,-440.0,0.00017258,2]
[363996941,1748956243440,-327.836711,0.00017259,2]
[363996943,1748956243450,-1342.42067123,0.00017259,2]
[363997191,1748956246220,-280.12932877,0.00017259,2]
[363997193,1748956246230,-440.0,0.00017259,2]
[363997195,1748956246240,-440.0,0.0001726,2]
[363997197,1748956246250,-400.0,0.0001726,2]
[363997199,1748956246260,-420.0,0.00017532,2]
[363997201,1748956246269,-440.0,0.00017532,2]
[363997203,1748956246279,-430.0,0.00017532,2]
[363997205,1748956246289,-211.96787064,0.00017533,2]
[363997207,1748956246301,-1410.58212936,0.00017533,2]
[363997209,1748956246310,-440.0,0.00017533,2]
[363997211,1748956246320,-440.0,0.00017534,2]
[363997213,1748956246330,-5415.30442993,0.00017582,2]
[363997215,1748956246342,-302.10002581,0.00017582,2]
[363997217,1748956246355,-892.3,0.00017582,2]
[363997219,1748956246366,-1230.47067696,0.00017582,2]
[363997221,1748956246376,-329.44220629,0.00017806,2]
[363997224,1748956246389,-110.55779371,0.00017806,2]
[363997226,1748956246399,-372.22486779,0.00017807,2]
[364000495,1748957097637,1000.0,0.0002465,120]
[364000496,1748957098464,1000.0,0.0002465,120]
[364000497,1748957099343,1000.0,0.0002465,120]
[364000498,1748957100135,1000.0,0.0002465,120]
[364000499,1748957104681,1000.0,0.0002465,120]
[364000500,1748957109590,566.0,0.0002465,120]
[364000502,1748957170856,1000.0,0.0002465,120]
[364000610,1748957432421,-177.87509842,0.00016475,2]
[364000612,1748957432431,-250.8555093,0.0001673,2]
[364000615,1748957432440,-430.0,0.00016985,2]
[364000617,1748957432450,-430.0,0.00016985,2]
[364000619,1748957432459,-430.0,0.00016985,2]
[364000621,1748957432468,-430.0,0.00016985,2]
[364000623,1748957432478,-127.81929482,0.00016985,2]
[364000646,1748957432671,-302.18070518,0.00016985,2]
[364000648,1748957432681,-430.0,0.00016985,2]
[364000650,1748957432690,-430.0,0.00016985,2]
[364000651,1748957432701,-430.0,0.00016985,2]
[364000653,1748957432712,-579.41965538,0.00016985,2]
[364000655,1748957432722,-430.0,0.00016985,2]
[364000657,1748957432731,-541.22,0.00016985,2]
[364000659,1748957432741,-430.0,0.00016985,2]
[364000661,1748957432752,-430.0,0.00016985,2]
[364000664,1748957432762,-216.77,0.00017256,2]
[364000666,1748957432772,-430.0,0.00017256,2]
[364000668,1748957432781,-430.0,0.00017256,2]
[364000669,1748957432790,-430.0,0.00017256,2]
[364000671,1748957432799,-467.39,0.00017256,2]
[364000674,1748957432809,-430.0,0.00017256,2]
[364000676,1748957432818,-440.0,0.00017256,2]
[364000678,1748957432827,-440.0,0.00017256,2]
[364000680,1748957432837,-430.0,0.00017256,2]
[364000681,1748957432846,-430.0,0.00017256,2]
[364000682,1748957432855,-430.0,0.00017256,2]
[364000683,1748957432865,-430.0,0.00017256,2]
[364000684,1748957432875,-440.0,0.00017256,2]
[364000686,1748957432884,-430.0,0.00017256,2]
[364000687,1748957432893,-430.0,0.00017257,2]
[364000688,1748957432902,-430.0,0.00017257,2]
[364000689,1748957432912,-430.0,0.00017257,2]
[364000690,1748957432922,-476.58,0.00017257,2]
[364000692,1748957432932,-440.0,0.00017257,2]
[364000693,1748957432942,-430.0,0.00017257,2]
[364000694,1748957432951,-430.0,0.00017257,2]
[364000695,1748957432961,-430.0,0.00017257,2]
[364000696,1748957432970,-430.0,0.00017257,2]
[364000697,1748957432979,-430.0,0.00017257,2]
[364000698,1748957432988,-430.0,0.00017257,2]
[364000699,1748957432998,-430.0,0.00017257,2]
[364000700,1748957433007,-430.0,0.00017257,2]
[364000701,1748957433016,-430.0,0.00017257,2]
[364000702,1748957433026,-430.0,0.00017257,2]
[364000703,1748957433037,-430.0,0.00017257,2]
[364000704,1748957433048,-347.29957588,0.00017257,2]
[364000705,1748957433057,-430.0,0.00017257,2]
[364000706,1748957433067,-430.0,0.00017257,2]
[364000708,1748957433077,-430.0,0.00017257,2]
[364000709,1748957433086,-430.0,0.00017257,2]
[364000710,1748957433097,-430.0,0.00017257,2]
[364000711,1748957433107,-430.0,0.00017257,2]
[364000712,1748957433117,-430.0,0.00017257,2]
[364000713,1748957433126,-430.0,0.00017257,2]
[364000714,1748957433135,-430.0,0.00017257,2]
[364000715,1748957433145,-440.0,0.00017257,2]
[364000716,1748957433155,-430.0,0.00017257,2]
[364000717,1748957433164,-430.0,0.00017258,2]
[364000718,1748957433174,-430.0,0.00017258,2]
[364000719,1748957433183,-430.0,0.00017258,2]
[364000720,1748957433192,-430.0,0.00017258,2]
[364000721,1748957433202,-430.0,0.00017258,2]
[364000722,1748957433211,-430.0,0.00017258,2]
[364000723,1748957433220,-430.0,0.00017258,2]
[364000724,1748957433230,-203.75254684,0.0001742,2]
[364000725,1748957433239,-208.72705369,0.00017431,2]
[364000726,1748957433249,-356.26,0.0001753,2]
[364000727,1748957433258,-185.31,0.0001753,2]
[364000728,1748957433268,-440.0,0.0001753,2]
[364000729,1748957433277,-430.0,0.00017531,2]
[364000730,1748957433287,-430.0,0.00017531,2]
[364000731,1748957433297,-430.0,0.00017531,2]
[364000732,1748957433307,-430.0,0.00017531,2]
[364000733,1748957433316,-430.0,0.00017531,2]
[364000734,1748957433326,-440.0,0.00017531,2]
[364000735,1748957433335,-430.0,0.00017531,2]
[364000736,1748957433345,-430.0,0.00017531,2]
[364000737,1748957433354,-440.0,0.00017531,2]
[364000738,1748957433364,-170.59918432,0.00017531,2]
[364000739,1748957433374,-440.0,0.00017531,2]
[364000740,1748957433385,-440.0,0.00017531,2]
[364000741,1748957433395,-430.0,0.00017531,2]
[364000742,1748957433404,-430.0,0.00017531,2]
[364000743,1748957433414,-430.0,0.00017531,2]
[364000744,1748957433424,-535.64,0.00017531,2]
[364000745,1748957433434,-440.0,0.00017804,2]
[364000746,1748957433444,-440.0,0.00017805,2]
[364000747,1748957433453,-440.0,0.00017805,2]
[364000748,1748957433466,-308.59,0.00017805,2]
[364000749,1748957433475,-228.25,0.00017805,2]
[364000750,1748957433485,-1250.32513221,0.00017807,2]
[364000751,1748957433494,-850.28127345,0.000179,2]
[364000752,1748957433504,-160.0,0.00018057,2]
[364000753,1748957433513,-229.42821335,0.00018057,2]
[364000754,1748957433522,-212.86879254,0.00018057,2]
[364000755,1748957433531,-423.63107087,0.00018057,2]
[364000756,1748957433540,-160.0,0.00018057,2]
[364000757,1748957433550,-842.5625,0.00018057,2]
[364000758,1748957433559,-160.0,0.00018057,2]
[364000759,1748957433568,-440.0,0.00018078,2]
[364000760,1748957433577,-500.0,0.00018079,2]
[364000761,1748957433587,-500.0,0.00018079,2]
[364000762,1748957433596,-500.0,0.00018079,2]
[364000763,1748957433606,-500.0,0.00018079,2]
[364000764,1748957433615,-500.0,0.00018079,2]
[364000765,1748957433630,-180.65575596,0.00018079,2]
[364000766,1748957433639,-500.0,0.00018079,2]
[364000767,1748957433648,-500.0,0.00018079,2]
[364000768,1748957433658,-487.58305725,0.00018079,2]
[364000769,1748957433670,-585.57549667,0.00018079,2]
[364000770,1748957433680,-542.05159246,0.00018079,2]
[364000771,1748957433690,-500.0,0.00018079,2]
[364000772,1748957433699,-500.0,0.00018079,2]
[364000773,1748957433710,-500.0,0.00018079,2]
[364000774,1748957433721,-500.0,0.00018079,2]
[364000775,1748957433731,-500.0,0.00018079,2]
[364000776,1748957433741,-168.61603096,0.00018079,2]
[364000777,1748957433750,-500.0,0.00018079,2]
[364000778,1748957433760,-979.9804,0.00018079,2]
[364000779,1748957433771,-440.0,0.00018079,2]
[364000780,1748957433782,-230.42,0.00018079,2]
[364000781,1748957433793,-743.36930688,0.0001808,3]
[364000805,1748957438305,-430.0,0.00017257,2]
[364000807,1748957438315,-872.40698985,0.0001808,3]
[364000809,1748957438328,-13409.15828992,0.0001808,3]
[364000825,1748957438472,-329.94344376,0.0001808,3]
[364000827,1748957438484,-4006.75891916,0.0001808,3]
[364000829,1748957438496,-34654.69973384,0.0001808,3]
[364000831,1748957438507,-6292.35090533,0.0001808,3]
[364000834,1748957438518,-431.04453523,0.0001808,3]
[364000836,1748957438530,-20688.49063756,0.0001808,3]
[364000838,1748957438539,-368.37056117,0.0001808,2]
[364000840,1748957438549,-430.0,0.0001808,2]
[364000842,1748957438559,-430.0,0.0001808,2]
[364000844,1748957438569,-430.0,0.0001808,2]
[364000847,1748957438579,-430.0,0.0001808,2]
[364000849,1748957438588,-430.0,0.0001808,2]
[364000851,1748957438598,-470.0,0.0001808,2]
[364000853,1748957438607,-263.77,0.0001808,2]
[364000855,1748957438618,-430.0,0.0001808,2]
[364000857,1748957438634,-430.0,0.0001808,2]
[364000859,1748957438645,-430.0,0.0001808,2]
[364000861,1748957438654,-430.0,0.0001808,2]
[364000863,1748957438664,-295.99655748,0.0001808,2]
[364000865,1748957438674,-261.78734512,0.0001808,2]
[364000867,1748957438685,-440.0,0.0001808,2]
[364000869,1748957438694,-430.0,0.0001808,2]
[364000871,1748957438704,-430.0,0.0001808,2]
[364000873,1748957438713,-430.0,0.0001808,2]
[364000875,1748957438724,-430.0,0.0001808,2]
[364000877,1748957438733,-430.0,0.0001808,2]
[364000879,1748957438742,-430.0,0.0001808,2]
[364000881,1748957438751,-430.0,0.0001808,2]
[364000883,1748957438760,-430.0,0.0001808,2]
[364000885,1748957438770,-430.0,0.0001808,2]
[364000887,1748957438779,-440.0,0.0001808,2]
[364000889,1748957438789,-430.0,0.0001808,2]
[364000891,1748957438799,-430.0,0.0001808,2]
[364000893,1748957438809,-1622.55,0.00018081,2]
[364000895,1748957438819,-850.28127334,0.00018141,2]
[364000897,1748957438829,-440.0,0.00018352,2]
[364000899,1748957438839,-440.0,0.00018353,2]
[364000901,1748957438848,-440.0,0.00018354,2]
[364000903,1748957438859,-414.23,0.00018354,2]
[364000905,1748957438868,-1622.55,0.00018355,2]
[364000907,1748957438878,-208.72705362,0.00018372,2]
[364000909,1748957438888,-850.28127334,0.00018383,2]
[364000911,1748957438897,-1200.0,0.000185,2]
[364000913,1748957438907,-850.28127334,0.00018624,2]
[364000915,1748957438916,-440.0,0.00018626,2]
[364000917,1748957438926,-440.0,0.00018627,2]
[364000919,1748957438935,-440.0,0.00018628,2]
[364000921,1748957438945,-1622.55,0.00018629,2]
[364000923,1748957438955,-850.28127334,0.00018866,2]
[364000925,1748957438964,-440.0,0.000189,2]
[364000927,1748957438974,-440.0,0.00018901,2]
[364000929,1748957438983,-440.0,0.00018902,2]
[364000931,1748957438992,-1622.55,0.00018903,2]
[364000933,1748957439002,-193.0185478,0.00018903,2]
[364000935,1748957439011,-850.28127334,0.00019107,2]
[364000937,1748957439021,-440.0,0.00019174,2]
[364000939,1748957439031,-440.0,0.00019175,2]
[364000941,1748957439041,-440.0,0.00019176,2]
[364000943,1748957439051,-1293.68686364,0.00019177,2]
[364000945,1748957439063,-328.86313636,0.00019177,2]
[364000947,1748957439073,-179.19075,0.00019178,2]
[364000949,1748957439082,-208.72705362,0.00019314,2]
[364000951,1748957439092,-850.28127334,0.00019348,2]
[364000953,1748957439101,-440.0,0.00019448,2]
[364000955,1748957439111,-107.64620517,0.00019449,2]
[364001090,1748957440736,-332.35379483,0.00019449,2]
[364001091,1748957440747,-440.0,0.0001945,2]
[364001092,1748957440759,-1622.55,0.00019451,2]
[364001093,1748957440769,-1300.0,0.000195,3]
[364001095,1748957440779,-168.90841673,0.0001959,2]
[364001234,1748957443414,-681.37285661,0.0001959,2]
[364001236,1748957443425,-158.61499595,0.00019644,2]
[364001238,1748957443434,-440.0,0.00019722,2]
[364001240,1748957443444,-440.0,0.00019723,2]
[364001242,1748957443454,-440.0,0.00019724,2]
[364001244,1748957443463,-1622.55,0.00019725,2]
[364001246,1748957443474,-409.335,0.00019777,2]
[364001248,1748957443483,-850.28127334,0.00019831,2]
[364001250,1748957443493,-500.0,0.0001987,2]
[364001252,1748957443502,-180.32516566,0.00019899,2]
[364001254,1748957443512,-26023.52070844,0.00019996,2]
[364001256,1748957443524,-18201.30279483,0.00019996,2]
[364001260,1748957443536,-684.77064123,0.00019996,2]
[364003884,1748957477437,160.890607,0.00013699,2]
[364003951,1748957627346,1000.0,0.00024658,120]
[364003952,1748957708031,283.5,0.00024658,120]
[364003953,1748958005558,11848.23,0.00024657,120]
[364003956,1748958338730,3000.0,0.00024657,120]
[364003962,1748958384277,4000.0,0.00024657,120]
[364003967,1748958491201,160.890607,0.00013699,2]
[364003968,1748958519755,1480.614,0.00024658,120]
[364003969,1748958520229,1109.56630597,0.00024658,120]
[364003976,1748958552265,500.0,0.00023,120]
[364003985,1748958553093,500.0,0.00023,120]
[364003995,1748958553919,500.0,0.00023,120]
[364003996,1748958554715,500.0,0.00023,120]
[364003997,1748958555495,500.0,0.00023,120]
[364004003,1748958556279,500.0,0.00023,120]
[364004004,1748958557039,500.0,0.00023,120]
[364004005,1748958557850,500.0,0.00023,120]
[364004006,1748958558634,500.0,0.00023,120]
[364004007,1748958559413,500.0,0.00023,120]
[364004008,1748958560217,500.0,0.00023,120]
[364004009,1748958561049,500.0,0.00023,120]
[364004010,1748958561826,500.0,0.00023,120]
[364004011,1748958562962,500.0,0.00023,120]
[364004012,1748958563766,500.0,0.00023,120]
[364004013,1748958564541,500.0,0.00023,120]
[364004015,1748958565459,500.0,0.00023,120]
[364004023,1748958566098,500.0,0.00023,120]
[364004024,1748958566876,500.0,0.00023,120]
[364004025,1748958567693,500.0,0.00023,120]
[364004026,1748958568445,500.0,0.00023,120]
[364004027,1748958569722,500.0,0.00023,120]
[364004028,1748958569823,2446.0,0.000246,120]
[364004030,1748958570508,500.0,0.00023,120]
[364004031,1748958571327,500.0,0.00023,120]
[364004032,1748958572160,500.0,0.00023,120]
[364004033,1748958572624,150.5,0.0002328,120]
[364004034,1748958572933,500.0,0.00023,120]
[364004035,1748958573079,150.5,0.0002327,120]
[364004036,1748958573545,279.95,0.0002326,120]
[364004037,1748958573741,500.0,0.00023,120]
[364004038,1748958574552,500.0,0.00023,120]
[364004039,1748958575350,500.0,0.00023,120]
[364004040,1748958576131,500.0,0.00023,120]
[364004041,1748958576923,500.0,0.00023,120]
[364004042,1748958577739,500.0,0.00023,120]
[364004043,1748958578526,500.0,0.00023,120]
[364004044,1748958579443,500.0,0.00023,120]
[364004045,1748958580357,500.0,0.00023,120]
[364004047,1748958581073,500.0,0.00023,120]
[364004049,1748958581883,500.0,0.00023,120]
[364004050,1748958582658,500.0,0.00023,120]
[364004051,1748958583481,500.0,0.00023,120]
[364004052,1748958584211,500.0,0.00023,120]
[364004053,1748958584991,500.0,0.00023,120]
[364004054,1748958585806,500.0,0.00023,120]
[364004055,1748958586585,500.0,0.00023,120]
[364004056,1748958587595,500.0,0.00023,120]
[364004057,1748958588382,500.0,0.00023,120]
[364004058,1748958589157,500.0,0.00023,120]
[364004059,1748958589957,293.27,0.00023,120]
[364004061,1748958603299,1161.3,0.00022,120]
[364004104,1748958632666,-170.80315913,0.00017256,2]
[364004106,1748958632675,-430.0,0.00017256,2]
[364004108,1748958632685,-430.0,0.00017256,2]
[364004110,1748958632698,-206.82740622,0.00017256,2]
[364004112,1748958632707,-430.0,0.00017256,2]
[364004114,1748958632716,-430.0,0.00017256,2]
[364004116,1748958632727,-430.0,0.00017256,2]
[364004118,1748958632736,-430.0,0.00017256,2]
[364004120,1748958632746,-1000.0,0.00017256,2]
[364004121,1748958632757,-430.0,0.00017256,2]
[364004122,1748958632767,-430.0,0.00017256,2]
[364004123,1748958632776,-430.0,0.00017256,2]
[364004124,1748958632786,-430.0,0.00017256,2]
[364004125,1748958632795,-430.0,0.00017256,2]
[364004126,1748958632806,-430.0,0.00017256,2]
[364004127,1748958632817,-430.0,0.00017256,2]
[364004128,1748958632826,-430.0,0.00017256,2]
[364004129,1748958632835,-430.0,0.00017256,2]
[364004130,1748958632848,-430.0,0.00017256,2]
[364004131,1748958632857,-430.0,0.00017256,2]
[364004132,1748958632867,-430.0,0.00017256,2]
[364004133,1748958632877,-430.0,0.00017256,2]
[364004134,1748958632886,-430.0,0.00017529,2]
[364004135,1748958632896,-430.0,0.00017529,2]
[364004136,1748958632905,-430.0,0.00017529,2]
[364004137,1748958632915,-440.0,0.00017529,2]
[364004138,1748958632924,-430.0,0.00017529,2]
[364004139,1748958632934,-430.0,0.00017529,2]
[364004141,1748958632943,-430.0,0.00017529,2]
[364004143,1748958632953,-430.0,0.00017529,2]
[364004145,1748958632962,-440.0,0.00017803,2]
[364004147,1748958632972,-314.94761707,0.00018003,2]
[364004149,1748958632981,-76.99461503,0.00018003,2]
[364004151,1748958633002,-765.56788497,0.00018003,2]
[364004153,1748958633012,-229.42821335,0.00018003,2]
[364004155,1748958633022,-212.86879254,0.00018003,2]
[364004157,1748958633032,-160.0,0.00018003,2]
[364004159,1748958633042,-423.63107087,0.00018003,2]
[364004161,1748958633052,-160.0,0.00018003,2]
[364004163,1748958633062,-160.0,0.00018003,2]
[364004165,1748958633072,-430.0,0.00018043,2]
[364004167,1748958633082,-588.7692279,0.00018044,2]
[364004169,1748958633093,-430.0,0.00018055,2]
[364004171,1748958633103,-430.0,0.00018055,2]
[364004173,1748958633113,-430.0,0.00018056,2]
[364004175,1748958633123,-459.62,0.00018056,2]
[364004177,1748958633133,-550.84,0.00018056,2]
[364004179,1748958633143,-430.0,0.00018056,2]
[364004181,1748958633153,-430.0,0.00018056,2]
[364004183,1748958633163,-430.0,0.00018056,2]
[364004185,1748958633175,-430.0,0.00018056,2]
[364004187,1748958633184,-440.0,0.00018056,2]
[364004189,1748958633194,-500.28,0.00018056,2]
[364004191,1748958633204,-430.0,0.00018056,2]
[364004193,1748958633213,-440.0,0.00018056,2]
[364004195,1748958633223,-430.0,0.00018056,2]
[364004197,1748958633233,-430.0,0.00018056,2]
[364004199,1748958633243,-430.0,0.00018056,2]
[364004201,1748958633252,-430.0,0.00018056,2]
[364004203,1748958633262,-440.0,0.00018056,2]
[364004205,1748958633275,-430.0,0.00018056,2]
[364004207,1748958633285,-430.0,0.00018056,2]
[364004209,1748958633295,-430.0,0.00018056,2]
[364004210,1748958633305,-430.0,0.00018056,2]
[364004212,1748958633315,-430.0,0.00018056,2]
[364004214,1748958633326,-496.97,0.00018056,2]
[364004216,1748958633336,-456.42,0.00018056,2]
[364004218,1748958633350,-208.6444991,0.00018056,2]
[364004220,1748958633360,-430.0,0.00018056,2]
[364004222,1748958633373,-430.0,0.00018056,2]
[364004224,1748958633384,-161.77443839,0.00018056,2]
[364004226,1748958633394,-440.0,0.00018077,2]
[364004228,1748958633404,-440.0,0.00018077,2]
[364004230,1748958633414,-440.0,0.00018077,2]
[364004232,1748958633424,-430.0,0.00018077,2]
[364004234,1748958633434,-440.0,0.0001833,2]
[364004236,1748958633444,-570.28,0.0001833,2]
[364004238,1748958633454,-440.0,0.0001833,2]
[364004240,1748958633463,-290.0,0.00018351,2]
[364004242,1748958633472,-440.0,0.00018351,2]
[364004245,1748958633482,-270.31,0.00018351,2]
[364004247,1748958633492,-440.0,0.00018604,2]
[364004248,1748958633502,-410.0,0.00018604,2]
[364004250,1748958633512,-440.0,0.00018625,2]
[364004253,1748958633523,-440.0,0.00018878,2]
[364004255,1748958633534,-440.0,0.00018899,2]
[364004257,1748958633546,-619.94809484,0.000189,2]
[364004259,1748958633555,-619.94809458,0.00019107,2]
[364004260,1748958633565,-203.75,0.00019152,2]
[364004263,1748958633575,-440.0,0.00019173,2]
[364004264,1748958633586,-179.19075,0.00019178,2]
[364004267,1748958633598,-619.94809458,0.00019314,2]
[364004268,1748958633608,-173.93921135,0.00019404,2]
[364004270,1748958633617,-440.0,0.00019447,2]
[364004272,1748958633627,-619.94809458,0.00019521,2]